bitfinex/quotes_SOLUSD_20260108
["timestamp","ask_amount","ask_price","bid_price","bid_amount"]
[1767911462476,0.69597461,139.47,139.44,2.10830717]
[1767911462985,0.72375317,139.51,139.47,0.69367674]
[1767911463156,0.72375317,139.5,139.47,0.69367674]
[1767911463484,0.72375317,139.5,139.46,2.80198391]
[1767911463673,0.72375317,139.5,139.47,2.80198391]
[1767911463873,7.89225466,139.5,139.47,2.80198391]
[1767911464557,0.72375317,139.49,139.46,0.69367674]
[1767911465272,0.72375317,139.51,139.47,2.80198391]
[1767911465459,0.72375317,139.5,139.45,7.86449185]
[1767911465660,0.72375317,139.5,139.46,2.10830717]
[1767911466370,0.72375317,139.5,139.45,7.86449185]
[1767911466568,7.89221353,139.5,139.46,2.10830717]
[1767911466775,0.68965054,139.49,139.45,7.86449185]
[1767911466970,0.68965054,139.49,139.45,9.97279902]
[1767911467278,0.68965054,139.47,139.43,0.65841908]
[1767911468075,0.68965054,139.47,139.43,7.83027895]
[1767911469279,9.96800697,139.47,139.43,0.65841908]
[1767911469469,7.8596998,139.47,139.43,7.83042048]
[1767911471060,7.8596998,139.47,139.43,0.65841908]
[1767911471968,9.96800697,139.47,139.43,7.8304221]
[1767911473991,0.68965054,139.46,139.43,7.8304221]
[1767911474167,2.79795771,139.45,139.42,7.17237311]
[1767911474377,13.1,139.48,139.44,0.65841908]
[1767911474682,0.68965054,139.48,139.45,0.65841908]
[1767911474865,2.79795771,139.48,139.45,0.65841908]
[1767911475267,0.68965054,139.48,139.45,0.65841908]
[1767911476995,2.79795771,139.48,139.45,0.65841908]
[1767911477165,0.68965054,139.47,139.44,7.17142422]
[1767911477367,2.79795771,139.46,139.41,0.94274222]
[1767911477577,2.79795771,139.46,139.42,7.83060059]
[1767911480093,0.68965054,139.45,139.42,7.83060059]
[1767911482769,2.79795771,139.46,139.42,7.83060059]
[1767911485782,2.79795771,139.46,139.42,69.93060059]
[1767911485982,2.79795771,139.46,139.43,0.65841908]
[1767911486280,2.79795771,139.46,139.43,0.5984191]
[1767911487801,9.96848721,139.46,139.43,0.5984191]
[1767911487988,9.96848721,139.46,139.42,69.27218151]
[1767911489498,0.68965054,139.45,139.42,69.27218151]
[1767911489975,0.68965054,139.45,139.42,69.93060059]
[1767911490591,9.27883667,139.46,139.42,7.83060059]
[1767911490796,9.96848721,139.46,139.42,7.83060059]
[1767911491683,7.86018004,139.46,139.42,7.83060059]
[1767911491891,9.96848721,139.46,139.42,7.83060059]
[1767911492900,9.96848721,139.46,139.42,0.65841908]
[1767911493495,0.69169697,139.45,139.42,0.65841908]
[1767911494205,2.80000414,139.45,139.42,0.72184503]
[1767911494802,2.10830717,139.45,139.42,0.72184503]
[1767911495804,2.10830717,139.45,139.42,0.66184504]
[1767911496104,0.69169697,139.42,139.37,17.93693068]
[1767911496405,2.80000414,139.42,139.38,7.1746305]
[1767911496608,2.10830717,139.41,139.38,7.1746305]
[1767911496987,2.10830717,139.41,139.38,0.28432314]
[1767911497187,2.10830717,139.41,139.37,25.11207597]
[1767911497388,2.80000414,139.42,139.37,25.11207597]
[1767911497608,0.69169697,139.42,139.38,0.28432314]
[1767911497903,2.80000414,139.42,139.39,0.72184503]
[1767911498813,2.80000414,139.42,139.38,8.03829687]
[1767911499190,2.80000414,139.42,139.39,0.72184503]
[1767911499390,2.10830717,139.41,139.39,0.72184503]
[1767911500588,3.29700472,139.41,139.39,0.72184503]
[1767911501308,3.98870169,139.42,139.39,0.72184503]
[1767911501506,3.98870169,139.4,139.36,0.72184503]
[1767911501708,3.29700472,139.39,139.36,0.72184503]
[1767911502207,3.29700472,139.38,139.35,0.82184503]
[1767911502795,13.79169697,139.4,139.36,0.72184503]
[1767911502989,3.98870169,139.41,139.37,0.72184503]
[1767911503395,0.69169697,139.4,139.36,4.01884975]
[1767911504001,3.98870169,139.41,139.37,0.72184503]
[1767911504402,0.69169697,139.41,139.37,0.72184503]
[1767911505920,0.69169697,139.41,139.37,7.89693731]
[1767911506121,0.69169697,139.41,139.38,0.72184503]
[1767911507211,7.86411715,139.43,139.39,0.72184503]
[1767911507597,0.69169697,139.42,139.39,0.72184503]
[1767911517510,0.69169697,139.45,139.41,3.29700472]
[1767911517817,0.69169697,139.45,139.42,3.29700472]
[1767911518810,0.69169697,139.45,139.43,3.29700472]
[1767911520519,0.69169697,139.45,139.42,7.89425234]
[1767911520722,0.69169697,139.45,139.43,3.29700472]
[1767911521322,0.69169697,139.46,139.43,3.29700472]
[1767911521525,0.69169697,139.46,139.43,3.23700474]
[1767911522230,0.69169697,139.46,139.42,7.89425234]
[1767911522806,0.69169697,139.46,139.42,11.19125706]
[1767911523830,0.69169697,139.46,139.42,73.29125706]
[1767911524629,0.66169976,139.45,139.42,62.1]
[1767911524930,0.66169976,139.45,139.42,62.75715551]
[1767911525107,17.92421631,139.48,139.44,3.95416023]
[1767911525108,0.66169976,139.48,139.44,3.95416023]
[1767911525307,0.66169976,139.48,139.45,3.29700472]
[1767911525508,0.66169976,139.48,139.43,0.65715551]
[1767911525709,0.66169976,139.48,139.43,3.95416023]
[1767911527011,0.66354897,139.47,139.43,3.95416023]
[1767911527418,0.66354897,139.47,139.43,3.89416024]
[1767911527620,0.66354897,139.47,139.43,0.59715552]
[1767911527834,0.66354897,139.47,139.43,3.89416024]
[1767911528139,0.66354897,139.47,139.43,0.59715552]
[1767911528525,0.66354897,139.48,139.45,3.29700472]
[1767911529036,0.66354897,139.48,139.44,10.46842028]
[1767911529414,0.66354897,139.48,139.44,11.16523524]
[1767911529735,0.66354897,139.48,139.44,73.26523524]
[1767911529932,0.66354897,139.47,139.44,62.1]
[1767911530817,0.56354897,139.45,139.44,60.6486808]
[1767911531016,0.56354897,139.45,139.42,7.17234854]
[1767911532142,0.46354897,139.46,139.42,7.8691635]
[1767911537139,13.56354897,139.47,139.44,0.69681496]
[1767911537341,0.46354897,139.47,139.44,0.69681496]
[1767911537644,23.56672777,139.48,139.44,0.69681496]
[1767911537645,13.56354897,139.48,139.44,0.69681496]
[1767911537840,16.86055369,139.48,139.44,0.69681496]
[1767911538831,0.099,139.47,139.44,0.69681496]
[1767911542954,0.45990348,139.46,139.43,0.69681496]
[1767911543153,3.76055369,139.47,139.44,0.69681496]
[1767911543448,0.46354897,139.47,139.44,0.57681505]
[1767911544028,0.46354897,139.47,139.43,7.17202606]
[1767911544652,0.21779991,139.46,139.43,7.17202606]
[1767911545350,0.21779991,139.46,139.43,7.86884102]
[1767911545731,0.21779991,139.46,139.43,0.69681496]
[1767911546053,0.21779991,139.46,139.42,60.6486808]
[1767911546054,0.46109148,139.45,139.42,60.6486808]
[1767911546346,0.46109148,139.45,139.4,7.86990251]
[1767911546347,0.22023282,139.44,139.4,68.51858331]
[1767911547647,0.22023282,139.44,139.41,0.69681496]
[1767911547822,10.46803447,139.45,139.41,0.69681496]
[1767911548022,10.56703447,139.45,139.41,0.69681496]
[1767911549948,10.56703447,139.45,139.41,7.86979897]
[1767911550246,7.27002975,139.45,139.42,0.69681496]
[1767911553552,0.099,139.45,139.42,0.69681496]
[1767911555950,0.57395433,139.42,139.39,0.65651738]
[1767911556247,3.29700472,139.43,139.39,0.65651738]
[1767911557227,3.39600472,139.43,139.4,0.65651738]
[1767911557551,3.29700472,139.41,139.38,7.83110013]
[1767911557854,3.29700472,139.41,139.39,0.65651738]
[1767911560555,2.11019551,139.41,139.39,0.65651738]
[1767911561859,2.11019551,139.4,139.35,0.1]
[1767911562151,15.21019551,139.42,139.38,0.65651738]
[1767911562351,2.11019551,139.42,139.38,0.65651738]
[1767911562553,2.20919551,139.42,139.38,0.65651738]
[1767911563355,9.38195196,139.42,139.38,0.65651738]
[1767911567247,2.6888989,139.41,139.37,0.65651738]
[1767911567467,2.11019551,139.4,139.37,0.65651738]
[1767911568358,2.11019551,139.38,139.36,61.30519818]
[1767911568555,2.11019551,139.38,139.36,0.65651738]
[1767911568963,2.11019551,139.39,139.36,0.65651738]
[1767911569165,9.38364784,139.39,139.36,0.65651738]
[1767911569344,2.11019551,139.38,139.35,0.75651738]
[1767911570465,7.27345233,139.39,139.35,0.75651738]
[1767911570765,9.38364784,139.39,139.35,0.75651738]
[1767911571464,2.6888989,139.37,139.35,0.1]
[1767911571869,2.11019551,139.37,139.35,0.1]
[1767911572048,2.11019551,139.36,139.35,0.1]
[1767911572252,2.11019551,139.36,139.33,0.75651738]
[1767911574166,7.2745226,139.37,139.32,0.431841]
[1767911574167,2.11019551,139.34,139.32,0.431841]
[1767911574468,1.95905125,139.34,139.32,1.08835838]
[1767911574669,1.8570504,139.34,139.32,1.08835838]
[1767911574843,9.3902225,139.35,139.32,1.08835838]
[1767911575280,2.11019551,139.34,139.32,1.08835838]
[1767911575458,9.3902225,139.35,139.32,1.08835838]
[1767911577465,7.17654215,139.35,139.32,0.65651739]
[1767911577675,9.28673766,139.35,139.32,0.65651739]
[1767911577974,13.1,139.37,139.32,0.65651739]
[1767911578173,2.11019551,139.36,139.32,0.65651739]
[1767911578757,2.11019551,139.36,139.32,1e-08]
[1767911579261,9.28585567,139.36,139.32,1e-08]
[1767911579462,0.47505028,139.35,139.32,1e-08]
[1767911579848,7.65071044,139.36,139.32,1e-08]
[1767911580053,9.76090595,139.36,139.32,1e-08]
[1767911580889,7.65071044,139.36,139.32,1e-08]
[1767911581064,9.76090595,139.36,139.32,1e-08]
[1767911581575,0.099,139.35,139.32,1e-08]
[1767911582682,0.099,139.35,139.32,0.6836308]
[1767911582853,0.099,139.35,139.32,1e-08]
[1767911583174,0.47128977,139.34,139.32,1e-08]
[1767911583647,2.58148528,139.34,139.32,1e-08]
[1767911585084,0.47128977,139.37,139.34,0.68363079]
[1767911585271,2.58148528,139.37,139.32,0.6836308]
[1767911585460,2.21291841,139.36,139.32,0.6836308]
[1767911586166,7.17617509,139.35,139.32,0.6836308]
[1767911589283,7.64377919,139.35,139.32,0.6836308]
[1767911593184,7.64377919,139.35,139.32,1e-08]
[1767911593384,7.2831523,139.34,139.32,1e-08]
[1767911593580,7.25315229,139.34,139.32,1e-08]
[1767911595476,9.3633478,139.34,139.32,1e-08]
[1767911597287,22.4633478,139.34,139.32,1e-08]
[1767911600910,7.25315229,139.34,139.32,1e-08]
[1767911601086,13.1,139.33,139.32,1e-08]
[1767911601410,13.06999998,139.33,139.32,1e-08]
[1767911602475,22.35774258,139.33,139.3,0.1]
[1767911602681,2.11019551,139.32,139.3,0.1]
[1767911602879,2.45524577,139.32,139.3,0.1]
[1767911603091,2.42524577,139.32,139.3,0.1]
[1767911603596,9.60329026,139.32,139.3,0.1]
[1767911606293,22.70329026,139.32,139.3,0.1]
[1767911608272,22.70329026,139.32,139.29,14.32948434]
[1767911608273,20.62309475,139.32,139.29,14.32948434]
[1767911608483,9.28855801,139.31,139.29,14.32948434]
[1767911609095,7.1783625,139.31,139.29,14.32948434]
[1767911611400,9.28855801,139.31,139.29,14.32948434]
[1767911612304,0.34258975,139.3,139.29,14.32948434]
[1767911612478,9.28855801,139.31,139.29,14.32948434]
[1767911612680,9.38755801,139.31,139.29,14.32948434]
[1767911612904,9.28855801,139.31,139.29,14.32948434]
[1767911613301,9.38755801,139.31,139.29,14.32948434]
[1767911614301,9.38755801,139.31,139.28,0.81068983]
[1767911614302,2.11019551,139.3,139.28,0.81068983]
[1767911616009,0.34017821,139.28,139.23,0.71068983]
[1767911616312,13.1,139.27,139.25,0.71068983]
[1767911616519,2.11019551,139.29,139.24,9.29190653]
[1767911616806,2.11019551,139.29,139.24,7.18171102]
[1767911617011,13.1,139.28,139.25,0.71068983]
[1767911617916,15.21019551,139.28,139.25,0.71068983]
[1767911618206,2.11019551,139.27,139.24,0.71068983]
[1767911618982,2.78978219,139.27,139.24,0.71068983]
[1767911619599,9.29100837,139.26,139.24,0.71068983]
[1767911621017,7.18081286,139.26,139.24,0.71068983]
[1767911621898,9.29100837,139.26,139.24,0.71068983]
[1767911622098,9.29100837,139.26,139.22,0.71068983]
[1767911622601,10.48508925,139.26,139.22,0.71068983]
[1767911623396,3.30427639,139.25,139.22,0.71068983]
[1767911623705,3.30427639,139.25,139.21,7.89390999]
[1767911623904,3.98093279,139.24,139.21,0.71068983]
[1767911624704,0.6766564,139.24,139.21,0.71068983]
[1767911628026,7.18183958,139.25,139.21,0.71068983]
[1767911630325,7.56543864,139.25,139.21,0.71068983]
[1767911631228,0.67958668,139.24,139.21,0.71068983]
[1767911631421,7.86441604,139.25,139.21,0.71068983]
[1767911632626,11.16869243,139.25,139.21,0.71068983]
[1767911633606,0.68257646,139.26,139.22,0.71068983]
[1767911633832,13.1,139.25,139.23,0.71068983]
[1767911634235,13.1,139.25,139.21,10.4875184]
[1767911634411,13.1,139.25,139.22,0.71068983]
[1767911636235,7.86356376,139.26,139.22,0.71068983]
[1767911636535,20.96356376,139.26,139.22,0.71068983]
[1767911637731,24.26784015,139.26,139.22,0.71068983]
[1767911640528,0.38359906,139.25,139.22,0.71068983]
[1767911641530,24.26784015,139.26,139.22,0.71068983]
[1767911641938,20.2809873,139.26,139.24,0.71068983]
[1767911642629,13.12,139.29,139.25,0.7122237]
[1767911643025,13.12,139.29,139.26,0.7122237]
[1767911643620,20.29949975,139.29,139.26,0.7122237]
[1767911644933,7.17949975,139.29,139.26,0.7122237]
[1767911645518,20.64322771,139.3,139.26,0.7122237]
[1767911645731,23.9475041,139.3,139.26,0.7122237]
[1767911646537,20.64322771,139.3,139.26,0.7122237]
[1767911646743,23.9475041,139.3,139.26,0.7122237]
[1767911647842,20.64322771,139.3,139.26,0.7122237]
[1767911648038,7.52322771,139.3,139.27,0.70024551]
[1767911648224,20.64322771,139.3,139.27,0.70024551]
[1767911648744,20.29898093,139.3,139.27,0.70024551]
[1767911649637,20.96883483,139.3,139.27,0.70024551]
[1767911651942,6.82227227,139.34,139.27,0.70024551]
[1767911652133,0.67264606,139.32,139.28,0.70024551]
[1767911652643,0.39343015,139.31,139.28,0.70024551]
[1767911653937,7.57174054,139.31,139.28,0.70024551]
[1767911654326,0.67264606,139.32,139.29,0.70024551]
[1767911654524,7.84950576,139.34,139.3,4.0045219]
[1767911656342,13.49619439,139.35,139.32,0.70024551]
[1767911656530,20.6725845,139.35,139.31,4.0045219]
[1767911656862,20.6725845,139.35,139.31,0.70024551]
[1767911657040,0.66711731,139.34,139.31,0.70024551]
[1767911658336,7.17566016,139.36,139.33,0.70024551]
[1767911658528,7.57185455,139.36,139.32,0.70024551]
[1767911660243,0.66711731,139.35,139.32,4.0045219]
[1767911662030,7.84830622,139.36,139.32,4.0045219]
[1767911663548,20.94830622,139.36,139.32,4.0045219]
[1767911663937,20.94830622,139.36,139.32,0.70024551]
[1767911664142,20.94830622,139.36,139.32,4.0045219]
[1767911665035,20.94830622,139.36,139.32,0.70024551]
[1767911666144,24.25258261,139.36,139.32,0.70024551]
[1767911666450,20.94830622,139.36,139.33,0.70024551]
[1767911668950,20.94830622,139.36,139.32,7.87792495]
[1767911669151,24.25258261,139.36,139.32,7.87792495]
[1767911670151,7.17663236,139.35,139.28,0.70024551]
[1767911670359,3.30427639,139.31,139.28,7.87998227]
[1767911670652,3.27427639,139.31,139.28,7.87998227]
[1767911671349,3.30427639,139.3,139.26,0.70024551]
[1767911671943,13.1,139.32,139.27,0.70024551]
[1767911672260,11.05678043,139.31,139.27,0.70024551]
[1767911672836,3.30427639,139.3,139.27,0.70024551]
[1767911675041,0.57385587,139.32,139.25,0.67288274]
[1767911675359,16.40427639,139.31,139.27,0.67288274]
[1767911677866,23.58256272,139.31,139.27,0.67288274]
[1767911679557,11.0522337,139.3,139.27,0.67288274]
[1767911679874,11.0222337,139.3,139.27,0.67288274]
[1767911680278,3.30427639,139.28,139.25,0.67288274]
[1767911680577,3.30427639,139.28,139.26,0.67288274]
[1767911680770,3.30427639,139.29,139.26,0.67288274]
[1767911681966,3.30427639,139.27,139.22,0.28432314]
[1767911682173,16.40427639,139.29,139.26,0.67288274]
[1767911682475,22.39323305,139.29,139.26,0.67288274]
[1767911682676,0.57385587,139.3,139.27,0.67288274]
[1767911682868,13.1,139.29,139.27,0.67288274]
[1767911683785,15.2138829,139.3,139.27,0.67288274]
[1767911683977,2.1138829,139.29,139.27,0.67288274]
[1767911684282,15.2138829,139.3,139.27,0.67288274]
[1767911684481,22.39275003,139.3,139.27,0.67288274]
[1767911684658,20.27886713,139.3,139.27,0.67288274]
[1767911685568,22.39275003,139.3,139.27,0.67288274]
[1767911688182,2.1138829,139.29,139.27,0.67288274]
[1767911688490,20.27886713,139.3,139.27,0.67288274]
[1767911688690,2.1138829,139.29,139.27,0.67288274]
[1767911688890,22.39275003,139.3,139.27,0.67288274]
[1767911690192,20.27886713,139.3,139.27,0.67288274]
[1767911690605,22.39275003,139.3,139.27,0.67288274]
[1767911691670,20.27886713,139.3,139.27,0.67288274]
[1767911691998,22.39275003,139.3,139.27,0.67288274]
[1767911692774,7.17841161,139.31,139.27,0.67288274]
[1767911692973,22.39229451,139.31,139.27,0.67288274]
[1767911693688,20.27841161,139.31,139.27,0.67288274]
[1767911693994,22.39229451,139.31,139.27,0.67288274]
[1767911694189,20.27841161,139.31,139.27,0.67288274]
[1767911694409,22.39229451,139.31,139.27,0.67288274]
[1767911695198,7.17790266,139.32,139.28,0.67288274]
[1767911695399,13.1,139.32,139.29,0.67288274]
[1767911695578,22.39132443,139.33,139.29,0.67288274]
[1767911697280,2.1138829,139.34,139.29,0.67288274]
[1767911697472,22.3907799,139.34,139.3,0.67288274]
[1767911698398,22.4897799,139.34,139.3,0.67288274]
[1767911700001,9.3897799,139.34,139.3,0.67288274]
[1767911700202,22.4897799,139.34,139.3,0.67288274]
[1767911700698,2.1138829,139.33,139.3,0.67288274]
[1767911701308,2.68299021,139.33,139.3,0.67288274]
[1767911701495,2.68299021,139.33,139.29,0.67288274]
[1767911702611,9.86020602,139.33,139.29,7.85210704]
[1767911702909,9.86020602,139.33,139.3,0.65663154]
[1767911704103,9.29109871,139.33,139.3,0.65663154]
[1767911704503,7.17721581,139.33,139.3,0.65663154]
[1767911704684,0.10370107,139.35,139.31,0.65663154]
[1767911705085,0.56445325,139.34,139.3,0.65663154]
[1767911707103,7.7412212,139.34,139.31,0.67582483]
[1767911707320,7.7412212,139.34,139.31,2.78970773]
[1767911707611,7.17676795,139.34,139.31,2.78970773]
[1767911708896,7.17676795,139.34,139.31,0.67582483]
[1767911709094,20.27676795,139.34,139.31,0.67582483]
[1767911710096,2.2128829,139.32,139.27,0.67582483]
[1767911710405,13.1,139.31,139.29,0.67582483]
[1767911711894,20.27854734,139.31,139.23,17.95520858]
[1767911712105,41.03573062,139.31,139.25,9.29478291]
[1767911712500,0.64544959,139.3,139.26,7.18080317]
[1767911713412,13.1,139.29,139.26,7.18080317]
[1767911714108,13.1,139.29,139.26,7.856628]
[1767911714308,7.82425856,139.3,139.27,0.67582483]
[1767911714513,13.1,139.29,139.27,0.67582483]
[1767911715018,13.1,139.29,139.25,7.85700394]
[1767911715019,13.79718879,139.29,139.25,7.85700394]
[1767911715519,13.1,139.29,139.27,0.67582483]
[1767911722127,13.74544959,139.29,139.26,62.77582483]
[1767911722812,13.1,139.29,139.27,0.67582483]
[1767911723215,13.1,139.29,139.26,62.77582483]
[1767911723413,20.2793113,139.29,139.26,62.77582483]
[1767911726621,20.92476089,139.29,139.26,62.77582483]
[1767911727702,20.2793113,139.29,139.26,62.77582483]
[1767911728706,20.2793113,139.29,139.27,0.67582483]
[1767911729218,20.2493113,139.29,139.26,62.77582483]
[1767911730425,20.2493113,139.29,139.27,0.67582483]
[1767911735032,20.89476089,139.29,139.26,0.72082846]
[1767911735526,0.65290431,139.28,139.25,62.82082846]
[1767911736030,2.2128829,139.26,139.23,0.72082846]
[1767911736211,13.1,139.25,139.23,0.72082846]
[1767911737011,13.64836526,139.25,139.22,0.72082846]
[1767911737207,13.1,139.25,139.22,0.72082846]
[1767911738916,15.3128829,139.25,139.21,0.86299003]
[1767911739120,15.3128829,139.25,139.22,0.72082846]
[1767911739324,15.2138829,139.25,139.22,0.72082846]
[1767911740016,13.1,139.25,139.23,0.72082846]
[1767911740928,13.1,139.25,139.24,0.72082846]
[1767911741120,7.18054486,139.27,139.24,0.72082846]
[1767911741305,13.1,139.26,139.24,0.72082846]
[1767911741706,13.64836526,139.26,139.23,0.72082846]
[1767911742106,13.64836526,139.26,139.22,0.72082846]
[1767911743439,13.1,139.26,139.22,0.72082846]
[1767911743834,20.28081497,139.26,139.22,0.72082846]
[1767911744016,20.28081497,139.26,139.23,0.72082846]
[1767911744017,13.1,139.25,139.23,0.72082846]
[1767911747523,7.18029726,139.27,139.24,0.72082846]
[1767911747722,13.12,139.26,139.24,0.72082846]
[1767911749545,20.30098281,139.26,139.24,0.72082846]
[1767911751248,20.84934807,139.26,139.22,73.3077915]
[1767911751447,0.10349365,139.25,139.22,62.82082846]
[1767911751752,20.85388712,139.26,139.22,66.12492987]
[1767911752048,18.50052963,139.3,139.24,0.72082846]
[1767911752245,13.219,139.29,139.25,0.72082846]
[1767911753331,20.39826627,139.29,139.25,0.72082846]
[1767911753631,13.12,139.28,139.25,0.72082846]
[1767911755452,20.29992787,139.28,139.25,0.72082846]
[1767911757856,3.30410141,139.26,139.16,36.66]
[1767911758030,13.12,139.25,139.21,3.30410141]
[1767911758231,13.12,139.26,139.22,3.30410141]
[1767911758955,13.12,139.26,139.16,0.1]
[1767911758956,0.1662449,139.24,139.16,0.1]
[1767911759155,3.30410141,139.21,139.16,0.1]
[1767911759453,3.30410141,139.22,139.16,3.40410141]
[1767911759650,7.18339199,139.21,139.16,10.58986062]
[1767911759955,7.18339199,139.21,139.17,0.72082846]
[1767911761968,7.82665996,139.21,139.17,0.72082846]
[1767911762945,11.13076137,139.21,139.17,0.72082846]
[1767911763641,0.17578488,139.2,139.16,0.79427039]
[1767911763835,3.47988629,139.2,139.16,0.79427039]
[1767911764632,0.63859314,139.19,139.16,0.1]
[1767911764833,3.94269455,139.19,139.16,0.1]
[1767911765037,3.48451437,139.18,139.16,0.1]
[1767911765247,3.30410141,139.18,139.13,0.79427039]
[1767911765650,4.02199588,139.18,139.13,0.79427039]
[1767911765857,0.71789447,139.19,139.13,0.79427039]
[1767911766063,3.40600606,139.17,139.13,0.79427039]
[1767911766248,0.10190465,139.17,139.13,4.0983718]
[1767911766441,0.10190465,139.17,139.13,0.79427039]
[1767911766837,7.25761194,139.17,139.13,0.79427039]
[1767911767039,10.48980874,139.17,139.13,0.1]
[1767911767246,7.18570733,139.17,139.13,0.1]
[1767911767761,10.48980874,139.17,139.13,0.1]
[1767911768948,11.18063716,139.17,139.13,0.81470382]
[1767911770163,7.87653575,139.17,139.13,45.67486585]
[1767911770964,0.099,139.16,139.13,44.96016203]
[1767911773853,0.099,139.16,139.12,0.1]
[1767911774055,3.30410141,139.16,139.12,0.1]
[1767911774261,3.30410141,139.15,139.12,0.1]
[1767911774963,3.30410141,139.14,139.08,18.56869943]
[1767911775548,7.18752246,139.13,139.08,25.75870602]
[1767911776364,7.18752246,139.13,139.09,0.71470382]
[1767911778245,7.18752246,139.13,139.09,4.01880523]
[1767911778950,7.18752246,139.13,139.09,0.71470382]
[1767911785373,3.30410141,139.13,139.09,0.71470382]
[1767911786774,7.18752246,139.13,139.09,0.71470382]
[1767911787269,10.49162387,139.13,139.09,0.71470382]
[1767911787876,7.18722656,139.14,139.11,0.71470382]
[1767911790476,7.18722656,139.14,139.09,52.17355953]
[1767911790687,7.18722656,139.14,139.1,4.01880523]
[1767911790993,7.18722656,139.14,139.1,0.71470382]
[1767911793000,25.15474129,139.14,139.1,0.71470382]
[1767911793291,28.4588427,139.14,139.1,0.71470382]
[1767911793498,28.4588427,139.14,139.09,0.67786912]
[1767911793870,3.30410141,139.11,139.08,14.5498942]
[1767911794373,7.1890726,139.1,139.08,1e-08]
[1767911795903,10.49317401,139.1,139.08,1e-08]
[1767911796200,7.1890726,139.1,139.08,1e-08]
[1767911797601,7.18855581,139.11,139.08,1e-08]
[1767911797802,10.49265722,139.11,139.08,1e-08]
[1767911798995,3.30410141,139.1,139.08,1e-08]
[1767911799199,3.30410141,139.09,139.08,1e-08]
[1767911800789,10.49369088,139.09,139.08,1e-08]
[1767911802003,10.49369088,139.09,139.06,0.4085184]
[1767911802393,23.61369088,139.09,139.05,62.1]
[1767911802704,23.61369088,139.09,139.04,0.67786912]
[1767911802705,3.30410141,139.07,139.04,0.67786912]
[1767911803002,3.30410141,139.07,139.03,0.67786912]
[1767911803201,3.30410141,139.07,139.02,0.67786912]
[1767911803594,38.28356315,139.09,139.02,7.87103942]
[1767911803905,3.30410141,139.06,139.02,7.87103942]
[1767911804108,3.30410141,139.06,139.03,0.67786912]
[1767911804605,2.12106359,139.06,139.03,0.67786912]
[1767911806006,2.12106359,139.06,139.02,7.1931703]
[1767911806308,7.19085663,139.07,139.03,0.67786912]
[1767911806479,9.31192022,139.07,139.03,0.67786912]
[1767911810201,9.31192022,139.07,139.01,69.97136509]
[1767911810407,9.31192022,139.07,139.02,0.67786912]
[1767911810708,2.12106359,139.06,139.02,0.67786912]
[1767911811310,15.24106359,139.06,139.02,0.67786912]
[1767911811512,22.43245613,139.06,139.02,0.67786912]
[1767911815313,22.43245613,139.06,139.01,7.19368597]
[1767911815505,2.12106359,139.05,139.01,0.67786912]
[1767911816114,9.31245613,139.06,139.01,0.67786912]
[1767911816306,22.43245613,139.06,139.01,0.67786912]
[1767911817205,22.43245613,139.06,139.02,0.67786912]
[1767911817904,9.31245613,139.06,139.02,0.67786912]
[1767911818209,22.43245613,139.06,139.02,0.67786912]
[1767911819121,22.43245613,139.06,139.01,0.67786912]
[1767911819122,2.12106359,139.05,139.01,0.67786912]
[1767911822519,9.31282713,139.05,139.01,0.67786912]
[1767911822710,7.19176354,139.05,139.01,0.67786912]
[1767911823121,9.31282713,139.05,139.01,0.67786912]
[1767911823305,7.19176354,139.05,139.01,0.67786912]
[1767911823513,2.12106359,139.04,139.01,0.67786912]
[1767911824725,9.31326289,139.04,139.01,0.67786912]
[1767911825623,7.1921993,139.04,139.01,0.67786912]
[1767911825830,9.31326289,139.04,139.01,0.67786912]
[1767911826028,9.31326289,139.04,139.0,7.91220106]
[1767911826210,9.31326289,139.04,139.01,0.66392277]
[1767911827027,2.12106359,139.04,139.01,0.66392277]
[1767911827723,7.19189399,139.05,139.01,0.66392277]
[1767911827925,2.12106359,139.04,139.01,0.66392277]
[1767911829129,9.31295758,139.05,139.01,0.66392277]
[1767911831836,7.19091579,139.07,139.03,0.66392277]
[1767911833335,20.32948376,139.1,139.06,0.66392277]
[1767911834032,9.30979085,139.11,139.07,0.66392277]
[1767911834219,22.44858605,139.13,139.09,0.66392277]
[1767911834538,2.12106359,139.12,139.09,0.66392277]
[1767911835533,9.30911834,139.12,139.09,0.66392277]
[1767911836514,7.18805475,139.12,139.09,0.66392277]
[1767911837326,22.42870289,139.13,139.09,0.66392277]
[1767911837722,17.96799394,139.14,139.09,0.66392277]
[1767911837723,7.18705111,139.14,139.1,0.66392277]
[1767911838040,9.3081147,139.14,139.1,0.66392277]
[1767911839039,22.4281147,139.14,139.1,0.66392277]
[1767911839743,20.30705111,139.14,139.1,0.66392277]
[1767911842644,15.24106359,139.15,139.11,0.66392277]
[1767911843347,2.12106359,139.15,139.11,0.66392277]
[1767911843522,15.24106359,139.15,139.11,0.66392277]
[1767911843918,13.12,139.15,139.11,0.66392277]
[1767911845348,22.42790314,139.15,139.11,0.66392277]
[1767911847948,20.30683955,139.15,139.11,0.66392277]